bitfinex-derivatives/quotes_ETHF0:USTF0_20250106
["timestamp","ask_amount","ask_price","bid_price","bid_amount"]
[1736181920719,1.3301,3714.3,3714.2,0.26922]
[1736181921019,1.3301,3714.3,3711.9,8.645164]
[1736181921221,0.26924,3713.9,3713.8,0.26925]
[1736181921609,0.26924,3713.9,3713.4,40.8]
[1736181921610,0.26925,3713.8,3713.7,0.26925]
[1736181921817,0.26924,3713.9,3713.8,0.26924]
[1736181922214,3.2078,3714.0,3713.9,0.26924]
[1736181922215,3.47704,3714.0,3713.9,0.26924]
[1736181922414,0.26924,3713.9,3713.8,0.26924]
[1736181922615,6.36579647,3714.0,3713.9,0.26924]
[1736181922616,6.63503647,3714.0,3713.9,0.26924]
[1736181922923,6.36579647,3714.0,3713.4,40.8]
[1736181923117,6.63503647,3714.0,3713.9,0.26924]
[1736181923618,6.36579647,3714.0,3713.9,0.26924]
[1736181923821,6.63502647,3714.0,3713.9,0.26924]
[1736181924021,6.36579647,3714.0,3713.9,0.26924]
[1736181924217,6.63502647,3714.0,3713.9,0.26924]
[1736181924524,0.26925,3713.9,3713.8,0.26924]
[1736181924923,3.47704,3714.0,3713.9,0.26924]
[1736181925221,3.47704,3714.0,3713.8,0.26924]
[1736181925222,0.26925,3713.9,3713.8,0.26924]
[1736181925414,3.15799647,3714.1,3713.4,40.8]
[1736181925616,3.15799647,3714.1,3714.0,0.26923]
[1736181925918,3.15799647,3713.9,3713.8,0.26925]
[1736181926316,3.15799647,3713.9,3713.4,40.8]
[1736181926518,0.26926,3713.7,3713.6,0.26926]
[1736181926821,0.6863,3713.8,3713.7,0.26925]
[1736181927020,0.6863,3713.8,3713.3,3.2078]
[1736181927520,0.6863,3713.8,3713.7,0.26925]
[1736181927715,0.6863,3713.8,3712.9,3.2078]
[1736181927923,3.2078,3713.6,3713.2,0.26929]
[1736181928220,3.2078,3713.6,3712.9,3.2078]
[1736181928221,0.7327,3713.5,3713.3,40.8]
[1736181928422,0.7327,3713.5,3713.4,0.26928]
[1736181929338,3.89069647,3713.5,3713.4,0.26928]
[1736181929923,3.89069647,3713.5,3713.3,40.8]
[1736181930124,0.26929,3713.2,3713.0,0.2693]
[1736181930426,0.6762,3713.4,3712.5,3.88115]
[1736181930427,0.26928,3713.3,3713.2,0.26929]
[1736181930623,0.6762,3713.4,3713.2,40.8]
[1736181930823,0.94548,3713.4,3713.2,40.8]
[1736181931219,0.26928,3713.3,3713.2,40.8]
[1736181931441,0.6762,3713.4,3713.3,0.26928]
[1736181931621,0.94548,3713.4,3713.3,0.26928]
[1736181932028,6.19728505,3713.4,3713.3,0.26928]
[1736181932324,5.92800505,3713.4,3713.3,0.26928]
[1736181932525,5.25180505,3713.4,3713.3,0.26928]
[1736181932829,5.25180505,3713.4,3713.3,0.70268]
[1736181933218,5.25180505,3713.4,3713.3,41.06928]
[1736181933423,3.9116,3714.1,3713.5,0.26927]
[1736181933424,4.22327435,3713.6,3713.5,0.26927]
[1736181934552,4.22327435,3713.6,3713.5,5.26927]
[1736181934829,2.68915435,3713.6,3713.5,5.26927]
[1736181935019,2.08442435,3713.6,3713.5,5.26927]
[1736181935225,2.08442435,3713.6,3713.5,0.26927]
[1736181935523,3.16908867,3713.9,3713.4,3.2078]
[1736181935723,3.16908867,3713.9,3713.8,0.26925]
[1736181936338,3.16908867,3713.9,3713.2,1.228]
[1736181936525,3.47706,3713.7,3713.6,0.26926]
[1736181936729,8.45960505,3714.2,3713.2,1.228]
[1736181936926,0.26926,3713.7,3713.6,0.26926]
[1736181937127,3.2078,3713.8,3713.3,40.8]
[1736181937128,3.2078,3713.8,3713.7,0.26925]
[1736181937321,0.26923,3714.1,3713.8,0.26924]
[1736181937521,5.25180505,3714.2,3713.3,41.47321]
[1736181938031,3.2078,3714.3,3714.2,0.26922]
[1736181939437,3.2078,3714.3,3714.2,41.06922]
[1736181939634,3.2078,3714.3,3714.2,40.8]
[1736181939828,3.2078,3714.3,3714.2,41.06922]
[1736181940332,3.47701,3714.3,3714.2,40.8]
[1736181940728,3.2078,3714.3,3713.6,0.67316]
[1736181940926,3.47702,3714.3,3714.2,0.26922]
[1736181941129,3.47702,3714.3,3714.1,0.26922]
[1736181941327,3.2078,3714.3,3713.4,3.88099]
[1736181941532,3.2078,3713.9,3712.9,3.2078]
[1736181941729,1.3546,3713.8,3713.7,0.26925]
[1736181941933,1.62385,3713.8,3713.7,0.26925]
[1736181942426,6.63779759,3713.8,3713.7,0.26925]
[1736181942938,6.63779759,3713.8,3713.1,0.67325]
[1736181942939,0.26926,3713.7,3713.1,0.67325]
[1736181943131,6.63779759,3713.8,3712.9,3.2078]
[1736181943340,0.26928,3713.3,3713.0,0.26931]
[1736181943639,3.47707,3713.5,3713.4,0.26928]
[1736181944039,3.2078,3713.5,3713.4,0.26928]
[1736181944434,3.47707,3713.5,3713.4,0.26928]
[1736181944737,3.2078,3713.5,3713.4,0.26928]
[1736181944937,3.47707,3713.5,3713.4,0.26928]
[1736181945138,3.2078,3713.5,3713.4,0.26928]
[1736181946144,8.49037893,3713.5,3713.4,0.26928]
[1736181946436,8.49037893,3713.5,3713.4,41.06928]
[1736181947237,5.28257893,3713.5,3713.4,41.06928]
[1736181947633,5.28257893,3713.6,3713.5,0.26927]
[1736181948232,5.28257893,3713.6,3713.5,5.26927]
[1736181948233,3.80461893,3713.6,3713.5,5.26927]
[1736181948437,2.63958893,3713.6,3713.5,5.26927]
[1736181948638,1.34914893,3714.0,3713.9,0.26924]
[1736181948835,1.34914893,3714.0,3713.9,45.47804]
[1736181949246,5.83378506,3714.4,3713.9,50.2088]
[1736181949540,3.797328,3714.4,3714.3,0.26921]
[1736181949741,2.364828,3714.4,3714.3,3.47701]
[1736181949937,0.6908,3715.4,3715.3,0.26914]
[1736181951939,0.26916,3715.0,3714.9,0.26916]
[1736181952139,3.8986,3715.4,3714.5,42.001]
[1736181952438,0.2692,3714.5,3714.4,3.2078]
[1736181952634,3.2078,3714.9,3714.4,3.2078]
[1736181952635,0.26918,3714.8,3714.4,3.2078]
[1736181952838,0.6682,3714.8,3714.7,0.26918]
[1736181953633,3.2078,3715.3,3714.4,3.88081]
[1736181953841,0.26915,3715.2,3715.0,0.26916]
[1736181954244,3.8828,3715.3,3714.9,0.26916]
[1736181954245,0.26916,3715.1,3714.9,0.26916]
[1736181954738,3.8828,3715.3,3715.1,0.26915]
[1736181954739,4.15195,3715.3,3715.1,0.26915]
[1736181954944,4.15195,3715.3,3714.4,3.2078]
[1736181954945,3.8828,3715.3,3714.4,3.2078]
[1736181955150,0.26919,3714.7,3714.6,0.26919]
[1736181955339,0.26918,3714.7,3714.5,0.26919]
[1736181955639,1.3992,3714.6,3714.5,0.26919]
[1736181955840,0.7242,3714.6,3714.5,0.26919]
[1736181958843,0.6671,3715.0,3714.4,3.2078]
[1736181959145,0.6671,3715.0,3714.9,0.26917]
[1736181959547,0.6671,3715.0,3714.9,41.06917]
[1736181962036,0.6671,3715.0,3714.8,0.26917]
[1736181962241,0.26918,3714.8,3714.3,0.26921]
[1736181962441,0.26919,3714.6,3714.4,0.2692]
[1736181962643,0.2692,3714.5,3714.3,0.26921]
[1736181962850,0.728,3714.4,3714.3,0.26921]
[1736181963049,0.9972,3714.4,3714.3,0.26921]
[1736181963242,0.9972,3714.4,3713.9,40.8]
[1736181963243,0.728,3714.4,3713.9,40.8]
[1736181963437,0.728,3714.4,3713.5,3.2078]
[1736181963438,0.26925,3713.8,3713.6,0.26926]
[1736181963670,0.6584,3714.3,3712.9,0.67327]
[1736181963671,3.2078,3713.7,3712.9,0.67327]
[1736181963849,0.26927,3713.6,3713.0,40.8]
[1736181964043,0.6584,3713.5,3713.4,0.26927]
[1736181964342,0.6584,3713.5,3713.0,40.8]
[1736181964742,0.26928,3713.3,3713.1,0.2693]
[1736181965142,0.6584,3713.5,3713.0,40.8]
[1736181965851,0.26928,3713.4,3713.1,0.2693]
[1736181966147,0.26929,3713.3,3713.1,0.2693]
[1736181967149,0.6584,3713.5,3713.1,0.2693]
[1736181967548,0.26929,3713.3,3713.1,0.2693]
[1736181967749,0.26929,3713.3,3713.1,0.26929]
[1736181968449,0.26929,3713.3,3713.1,0.2693]
[1736181968853,0.6584,3713.5,3713.1,0.2693]
[1736181969445,0.6584,3713.5,3713.0,40.8]
[1736181969446,0.26929,3713.2,3713.0,40.8]
[1736181969642,0.26929,3713.2,3713.0,41.0693]
[1736181969878,0.26929,3713.2,3713.0,0.2693]
[1736181970052,0.6584,3713.5,3713.1,0.2693]
[1736181970552,0.26929,3713.2,3713.1,0.2693]
[1736181970853,0.26929,3713.2,3712.6,40.8]
[1736181971057,5.27520455,3713.4,3712.6,40.8]
[1736181971348,3.2078,3712.8,3712.5,0.26933]
[1736181971553,0.26936,3712.3,3712.2,0.00996699]
[1736181972053,0.26938,3712.0,3711.3,4.22466745]
[1736181972253,0.6569,3711.9,3711.4,0.67356]
[1736181972447,0.6569,3711.9,3711.8,0.26939]
[1736181973451,8.48300455,3712.5,3711.8,40.8]
[1736181973647,5.27520455,3712.5,3712.4,3.47715]
[1736181974445,3.47708,3713.4,3712.4,0.26935]
[1736181974747,3.2078,3713.4,3713.3,0.26928]
[1736181974953,3.2078,3713.4,3713.2,0.26929]
[1736181975146,0.7176,3713.3,3713.2,0.26929]
[1736181976453,0.7176,3713.3,3713.2,41.06929]
[1736181976675,0.7167,3713.5,3713.2,40.8]
[1736181976952,0.7167,3713.5,3713.4,0.26928]
[1736181978854,0.7167,3713.5,3712.8,1.179]
[1736181979057,0.7167,3713.5,3713.4,0.26928]
[1736181979557,3.9245,3713.5,3712.1,3.2078]
[1736181979758,3.9245,3713.5,3712.3,0.6734]
[1736181979958,0.26929,3713.3,3713.1,0.2693]
[1736181980284,3.9245,3713.5,3712.6,0.67334]
[1736181980554,3.9245,3713.5,3713.1,0.26929]
[1736181980865,0.26929,3713.3,3713.1,0.26929]
[1736181981060,3.9245,3713.5,3713.1,0.26929]
[1736181981258,3.9245,3713.5,3713.2,0.26929]
[1736181981455,3.9245,3713.5,3712.6,0.67334]
[1736181981653,3.9245,3713.5,3713.1,0.26929]
[1736181981654,0.26929,3713.2,3713.1,0.26929]
[1736181981850,0.26929,3713.2,3712.5,0.67336]
[1736181981851,3.9245,3713.5,3712.5,0.67336]
[1736181982066,3.8926,3713.1,3712.5,0.67336]
[1736181982378,3.8926,3713.1,3712.4,40.8]
[1736181982379,0.5916,3713.0,3712.4,40.8]
[1736181982564,3.2078,3712.7,3712.6,0.26933]
[1736181982756,0.5916,3713.0,3712.4,40.8]
[1736181982949,0.5998,3712.6,3712.5,0.26934]
[1736181983153,0.5998,3712.6,3712.4,40.8]
[1736181983361,0.5998,3712.6,3712.2,0.67342]
[1736181983575,0.5998,3712.6,3712.5,0.26934]
[1736181983749,3.2078,3712.7,3712.6,0.26933]
[1736181984562,0.5916,3713.0,3712.6,3.2078]
[1736181984762,0.5916,3713.0,3712.9,0.26931]
[1736181985359,3.2078,3713.3,3713.2,0.26929]
[1736181985962,1.8228,3713.5,3713.4,0.26928]
[1736181986462,1.8228,3713.5,3713.4,41.06928]
[1736181987959,1.8228,3713.5,3713.4,40.8]
[1736181988357,2.09207,3713.5,3713.4,40.8]
[1736181988553,1.8228,3713.5,3713.4,40.8]
[1736181988763,1.8228,3713.5,3713.4,41.06928]
[1736181988965,1.2093,3713.5,3713.4,41.06928]
[1736181990364,3.8273,3714.0,3713.4,40.8]
[1736181990566,3.8273,3714.0,3713.9,0.26924]
[1736181991064,0.6195,3714.0,3713.4,40.8]
[1736181991265,0.26925,3713.9,3713.7,0.26925]
[1736181991457,0.6195,3714.0,3713.3,3.2078]
[1736181991458,0.88874,3714.0,3713.8,0.26924]
[1736181991665,0.26924,3713.9,3713.8,0.26924]
[1736181992056,0.6195,3714.0,3713.3,3.2078]
[1736181992259,0.26924,3713.9,3713.8,0.26924]
[1736181992568,0.26925,3713.8,3713.6,0.26926]
[1736181992763,1.1735,3713.7,3713.6,0.26926]
[1736181993168,1.1735,3713.7,3713.0,0.67327]
[1736181993169,4.3813,3713.7,3713.0,0.67327]
[1736181993473,0.26928,3713.4,3713.2,0.26929]
[1736181993659,4.3813,3713.7,3712.8,40.8]
[1736181993660,3.2078,3713.3,3712.8,40.8]
[1736181993884,3.47712,3712.9,3712.0,0.67344]
[1736181994064,1.1843,3712.8,3712.7,0.26933]
[1736181994965,0.26935,3712.4,3712.3,40.8]
[1736181995269,0.26936,3712.2,3712.0,0.26937]
[1736181995562,3.2078,3712.5,3711.3,3.2078]
[1736181995563,0.6188,3712.1,3711.4,0.67356]
[1736181995764,0.6205,3712.0,3711.9,0.26939]
[1736181996468,0.6205,3712.0,3711.9,41.06939]
[1736181999473,1.2166,3712.0,3711.9,41.06939]
[1736181999673,1.2166,3712.0,3711.9,40.8]
[1736181999864,1.48598,3712.0,3711.9,40.8]
[1736182000360,1.2166,3712.0,3711.3,3.2078]
[1736182000564,0.6157,3711.9,3711.3,3.2078]
[1736182000764,0.26941,3711.5,3711.4,40.8]
[1736182001265,0.26941,3711.5,3711.3,0.26943]
[1736182001266,3.2078,3711.6,3711.1,0.26944]
[1736182001490,0.26947,3710.8,3710.2,0.26951]
[1736182001664,1.7912,3710.7,3710.6,0.26948]
[1736182001879,1.7912,3710.7,3710.6,41.06948]
[1736182004877,1.7912,3710.7,3709.7,3.2078]
[1736182005478,0.26951,3710.2,3709.8,40.8]
[1736182005669,0.26951,3710.2,3710.0,0.26952]
[1736182006070,3.2078,3710.4,3710.0,0.26952]
[1736182006272,3.2078,3710.4,3709.8,40.8]
[1736182006273,0.26952,3710.1,3709.8,40.8]
[1736182006475,3.2078,3710.4,3709.8,40.8]
[1736182006776,3.2078,3710.4,3710.3,0.2695]
[1736182006977,3.2078,3710.4,3709.8,41.47385]
[1736182006978,0.621,3710.6,3710.5,0.26949]
[1736182007186,0.89048,3710.6,3709.8,0.67385]
[1736182007392,0.26949,3710.5,3709.7,0.67387]
[1736182007677,0.26949,3710.5,3710.2,0.26951]
[1736182007877,0.26949,3710.5,3710.4,40.8]
[1736182008574,3.47729,3710.5,3710.4,40.8]
[1736182009669,0.26952,3710.0,3709.9,0.26953]
[1736182009871,0.26952,3710.1,3710.0,0.26952]
[1736182010074,0.2695,3710.4,3709.8,0.26953]
[1736182010272,1.29472,3710.6,3709.8,0.26953]
[1736182010273,3.47732,3710.1,3710.0,40.8]
[1736182011880,0.26953,3709.9,3709.8,0.26953]
[1736182012075,0.26953,3710.0,3709.9,0.26952]
[1736182012283,0.26953,3709.9,3709.8,0.26953]
[1736182012599,0.26953,3710.0,3709.9,0.26953]
[1736182012778,3.47732,3710.1,3710.0,0.26952]
[1736182012973,3.47729,3710.5,3709.5,0.67391]
[1736182013179,3.2078,3710.5,3710.4,0.26949]
[1736182013379,3.2078,3710.9,3710.8,0.26947]
[1736182014396,3.2078,3710.9,3710.7,0.26947]
[1736182014684,3.47726,3710.9,3710.1,0.6738]
[1736182014880,3.47726,3710.9,3710.6,0.26947]
[1736182014881,3.2078,3710.9,3710.6,0.26947]
[1736182015078,3.2078,3710.9,3709.5,4.3868]
[1736182015280,3.2078,3710.9,3709.6,0.67388]
[1736182015476,3.2078,3710.5,3709.6,0.67388]
[1736182015671,0.6112,3710.4,3710.3,0.2695]
[1736182016972,0.60800484,3710.4,3709.9,0.62496882]
[1736182017185,0.60800484,3710.4,3710.3,0.2695]
[1736182017413,0.60800484,3710.4,3709.8,0.67383]
[1736182017414,0.2695,3710.3,3710.2,0.2695]
[1736182017996,0.26952,3710.2,3710.1,0.26951]
[1736182018180,0.60800484,3710.4,3709.6,0.67389]
[1736182018382,0.26952,3710.1,3710.0,0.26952]
[1736182018980,0.60800484,3710.4,3709.0,3.2078]
[1736182019284,0.26953,3710.0,3709.9,0.26952]
[1736182020183,3.2078,3710.1,3709.0,3.88179]
[1736182020508,0.26956,3709.6,3709.5,0.26955]
[1736182021184,3.2078,3709.7,3708.6,44.0078]
[1736182021385,0.6255,3709.6,3708.8,0.67403]
[1736182021585,0.89506,3709.6,3709.5,0.26956]
[1736182022282,0.89506,3709.6,3709.0,0.67398]
[1736182022283,0.6255,3709.6,3709.0,0.67398]
[1736182022483,0.26957,3709.5,3709.4,0.26956]
[1736182022679,0.6102,3709.5,3708.8,0.67403]
[1736182022888,0.26958,3709.3,3709.2,0.26957]
[1736182023082,0.26959,3709.2,3709.1,0.26958]
[1736182023386,0.26958,3709.3,3709.2,0.26957]
[1736182024182,3.47738,3709.3,3709.2,0.26957]
[1736182024388,3.88174,3709.3,3708.0,0.67417]
[1736182024695,3.2078,3708.9,3708.8,0.2696]
[1736182024985,3.2078,3708.9,3707.9,3.2078]
[1736182025176,0.6102,3709.5,3707.9,3.2078]
[1736182025177,3.2078,3708.5,3707.9,3.2078]
[1736182025382,0.6102,3708.4,3707.9,3.2078]
[1736182025584,0.26966,3708.1,3708.0,0.26966]
[1736182025887,0.6102,3708.4,3707.4,0.67428]
[1736182026106,0.6102,3708.4,3707.3,0.26972]
[1736182026107,0.2697,3707.7,3707.3,0.26972]
[1736182026384,3.2078,3708.0,3707.7,0.26969]
[1736182026385,0.26969,3707.8,3707.7,0.26969]
[1736182026576,0.26968,3707.9,3707.8,0.26968]
[1736182026783,0.26968,3707.9,3707.7,0.26969]
[1736182026981,0.26968,3707.9,3707.8,0.26968]
[1736182027186,0.5894,3707.9,3707.8,0.26968]
[1736182027982,3.2078,3708.0,3707.9,0.26968]
[1736182028583,3.2078,3708.0,3707.8,0.26968]
[1736182028889,3.2078,3708.0,3707.2,3.2078]
[1736182029078,3.2078,3708.0,3707.9,0.26968]
[1736182029584,1.2994,3709.6,3708.8,0.26961]
[1736182029585,3.2078,3708.9,3708.8,0.26961]
[1736182030490,3.2078,3708.9,3708.8,40.8]
[1736182030690,0.26963,3708.5,3707.9,0.26968]
[1736182030882,0.5829,3708.4,3708.3,0.26964]
[1736182031307,0.5829,3708.4,3708.3,41.06965]
[1736182032685,0.5829,3708.4,3708.3,40.8]
[1736182032686,0.85254,3708.4,3708.3,40.8]
[1736182033091,0.85254,3708.4,3707.3,3.88209]
[1736182033092,0.26967,3708.1,3708.0,0.26967]
[1736182033405,0.26966,3708.2,3708.1,0.26966]
[1736182033594,0.26966,3708.2,3708.0,0.26966]
[1736182034279,0.26968,3707.9,3707.8,0.26968]
[1736182034684,3.47747,3708.1,3707.9,0.26967]
[1736182034889,0.26967,3708.1,3707.3,3.2078]
[1736182035090,0.5829,3708.4,3707.9,0.26967]
[1736182035480,0.26967,3708.1,3708.0,0.26967]
[1736182035691,0.5829,3708.4,3707.5,0.67427]
[1736182035884,0.26965,3708.3,3708.1,0.26965]
[1736182036086,0.5829,3708.4,3708.1,0.26965]
[1736182036284,0.26965,3708.2,3708.1,0.26965]
[1736182036508,0.26965,3708.3,3708.2,0.26965]
[1736182037178,0.26965,3708.3,3707.5,0.67427]
[1736182037179,0.26966,3708.2,3707.7,0.26969]
[1736182037385,0.5829,3708.4,3707.6,40.8]
[1736182038086,0.5829,3708.4,3707.3,3.2078]
[1736182038288,0.26966,3708.1,3708.0,0.26966]
[1736182038481,0.5829,3708.4,3707.4,0.67429]
[1736182038482,0.26966,3708.2,3707.5,0.67427]
[1736182038792,0.26966,3708.1,3708.0,0.26966]
[1736182038984,0.26967,3708.0,3707.8,0.26968]
[1736182039187,0.26969,3707.8,3707.7,0.26969]
[1736182039483,0.6074,3707.9,3706.9,5.06217]
[1736182039691,0.87708,3707.9,3707.8,0.26968]
[1736182039889,0.6074,3707.9,3707.8,0.26968]
[1736182040277,0.87708,3707.9,3707.8,0.26968]
[1736182040479,3.2078,3708.2,3708.1,0.26966]
[1736182040682,3.47745,3708.2,3708.1,0.26966]
[1736182040907,0.26967,3708.0,3707.9,0.26967]
[1736182041080,3.2078,3708.2,3707.4,0.67429]
[1736182041396,3.2078,3707.8,3707.1,0.67434]
[1736182041712,0.26971,3707.5,3707.4,0.26971]
[1736182042085,0.26969,3707.7,3707.0,0.67436]
[1736182042284,0.5543,3707.4,3707.3,0.26972]
[1736182042479,0.26972,3707.3,3707.2,0.26972]
[1736182042693,0.613,3707.3,3706.9,3.2078]
[1736182042892,0.613,3707.3,3707.2,0.26973]
[1736182045191,0.613,3707.3,3706.9,3.2078]
[1736182045391,0.88272,3707.3,3707.2,0.26973]
[1736182045588,0.613,3707.3,3707.2,0.26973]
[1736182046488,0.613,3707.3,3707.2,41.06973]
[1736182046692,0.5543,3707.4,3707.3,0.26972]
[1736182046933,3.2078,3707.8,3707.7,0.26969]
[1736182047590,0.6089,3708.1,3708.0,0.26967]
[1736182047889,4.3324,3708.7,3708.6,0.26963]
[1736182048281,4.60202,3708.7,3708.6,0.26963]
[1736182048692,4.3324,3708.7,3708.6,0.26963]
[1736182049191,1.1246,3708.7,3708.6,0.26963]
[1736182049395,3.2078,3709.3,3708.3,3.2078]
[1736182049588,3.2078,3709.3,3709.2,0.26958]
[1736182049786,3.2078,3709.3,3709.2,41.06958]
[1736182051382,3.47737,3709.3,3709.2,40.8]
[1736182051583,0.26964,3708.5,3708.4,0.26963]
[1736182051893,3.2078,3708.9,3708.0,0.67418]
[1736182052091,1.1627,3708.4,3708.3,0.26965]
[1736182052895,1.1627,3708.4,3707.9,3.2078]
[1736182053199,3.2078,3708.1,3707.2,5.06211]
[1736182053489,0.26969,3707.7,3707.6,0.26969]
[1736182053686,3.2078,3708.1,3707.2,4.3878]
[1736182053889,0.5737,3707.6,3707.2,0.4614]
[1736182054088,0.26977,3706.6,3706.4,0.26978]
[1736182054295,0.26977,3706.6,3706.2,4.21577767]
[1736182054296,3.2078,3706.6,3706.5,0.26978]
[1736182054898,3.2078,3706.6,3706.2,4.21577767]
[1736182055292,3.2078,3706.6,3706.2,0.26979]
[1736182055490,3.2078,3706.6,3705.7,0.6746]
[1736182055792,3.2078,3706.2,3706.1,0.26981]
[1736182056496,3.2078,3706.2,3706.1,40.8]
[1736182056794,3.2078,3706.2,3706.1,41.06981]
[1736182057295,3.2078,3706.2,3706.1,40.8]
[1736182057296,3.7611,3706.2,3706.1,40.8]
[1736182057498,4.0309,3706.2,3706.1,40.8]
[1736182057690,4.0309,3706.2,3705.9,0.26982]
[1736182057691,0.26981,3706.0,3705.9,0.26982]
[1736182057892,0.26982,3705.9,3705.2,0.67469]
[1736182058200,3.7611,3706.2,3705.3,40.8]
[1736182058391,3.47765,3705.6,3705.4,0.26985]
[1736182058594,3.47765,3705.6,3705.0,0.26989]
[1736182058801,3.47765,3705.6,3705.4,0.26985]
[1736182059199,3.47765,3705.6,3704.9,1.28777425]
[1736182059200,3.2078,3705.6,3704.9,1.28777425]
[1736182059394,3.47768,3705.1,3704.9,1.55766425]
[1736182059588,3.2078,3705.1,3704.9,1.28777425]
[1736182059790,3.47769,3705.1,3704.9,1.28777425]
[1736182059988,3.2078,3705.1,3704.9,1.28777425]
[1736182060205,0.26989,3705.0,3704.9,1.28777425]
[1736182060397,0.86649,3705.0,3703.9,0.67492]
[1736182060600,0.86649,3705.0,3704.6,0.26991]
[1736182060902,3.47771,3704.7,3704.2,0.26994]
[1736182061201,3.2078,3704.3,3703.7,40.8]
[1736182061700,3.2078,3704.3,3704.2,0.26995]
[1736182063498,3.2078,3704.3,3704.2,41.06995]
[1736182063807,3.2078,3704.3,3704.2,40.8]
[1736182065902,3.47774,3704.3,3704.2,40.8]
[1736182067300,3.47774,3704.3,3702.9,3.2078]
[1736182067301,0.26999,3703.7,3703.3,0.27001]
[1736182067503,0.26999,3703.7,3702.9,3.2078]
[1736182067504,3.8093,3703.6,3703.4,0.27]
[1736182067706,3.8093,3703.6,3703.5,40.8]
[1736182068209,4.07929,3703.6,3703.5,40.8]
[1736182068399,3.8093,3703.6,3703.5,40.8]
[1736182068906,3.8093,3703.6,3703.5,41.07]
[1736182069101,3.8093,3703.6,3703.5,40.8]
[1736182069501,3.8093,3703.6,3703.5,41.07]
[1736182070910,0.5701,3704.2,3703.5,41.07]
[1736182070911,0.5701,3704.2,3703.5,40.8]
[1736182071200,3.2078,3704.4,3703.5,40.8]
[1736182071201,1.30758575,3704.4,3704.3,0.26994]
[1736182071405,3.2078,3705.5,3704.3,3.88265]
[1736182071616,3.2078,3705.5,3705.4,0.26986]
[1736182071807,3.2078,3705.5,3705.4,41.06986]
[1736182072508,3.47765,3705.5,3705.4,40.8]
[1736182072903,3.47765,3705.5,3704.9,0.26989]
[1736182072904,0.26988,3705.2,3704.9,0.26989]
[1736182073104,0.5144,3705.1,3704.3,0.67485]
[1736182073317,3.7222,3705.1,3704.4,40.8]
[1736182073603,3.99208,3705.1,3704.9,0.26989]
[1736182074030,3.7222,3705.1,3704.4,40.8]
[1736182074208,0.26993,3704.5,3704.2,0.26994]
[1736182074407,3.2078,3704.7,3704.2,0.26994]
[1736182074607,1.1035,3705.0,3704.7,0.26991]
[1736182074608,0.2699,3704.9,3704.7,0.26991]
[1736182074804,0.26991,3704.7,3704.5,0.26992]
[1736182075120,3.2078,3704.7,3704.3,40.8]
[1736182075303,3.2078,3704.7,3704.5,0.26992]
[1736182075505,0.26992,3704.6,3704.4,0.26993]
[1736182075902,0.26993,3704.5,3703.6,0.67498]
[1736182076101,0.26992,3704.6,3704.3,0.26994]
[1736182076305,1.1035,3705.0,3704.4,40.8]
[1736182076808,3.2078,3704.7,3704.4,40.8]
[1736182077112,0.6748,3704.6,3703.4,3.2078]
[1736182077404,3.2078,3704.2,3704.1,0.26995]
[1736182077603,3.47775,3704.2,3704.0,0.26995]
[1736182077911,0.26995,3704.1,3703.9,0.26996]
[1736182078111,3.47775,3704.2,3704.0,0.26996]
[1736182078612,3.2078,3704.2,3703.6,40.8]
[1736182079313,0.26997,3704.0,3703.8,0.26997]
[1736182079511,0.5691,3703.9,3703.8,0.26997]
[1736182079708,0.5691,3703.9,3703.6,40.8]
[1736182079910,0.26997,3703.8,3703.6,41.06999]
[1736182080311,0.26998,3703.8,3703.6,41.06999]
[1736182080512,3.2078,3703.8,3703.5,0.26999]
[1736182080812,3.2078,3703.8,3703.0,0.67507]
[1736182081013,3.2078,3703.8,3703.1,40.8]
[1736182081911,0.5691,3703.9,3703.1,40.8]
[1736182082106,0.5691,3703.9,3703.8,0.26997]
[1736182082506,3.2078,3704.2,3703.6,3.2078]
[1736182082712,3.2078,3704.2,3703.8,40.8]
[1736182082914,0.26996,3704.0,3703.8,41.06997]
[1736182083121,3.2078,3704.2,3703.8,40.8]
[1736182083507,3.47775,3704.2,3704.0,0.26995]
[1736182083714,3.2078,3704.2,3704.1,0.26995]
[1736182084911,3.2078,3704.6,3704.5,0.26992]
[1736182086113,3.2078,3705.1,3705.0,0.26989]
[1736182086319,3.2078,3705.5,3705.0,40.8]
[1736182086519,3.2078,3705.5,3704.1,4.3878]
[1736182086709,0.5527,3705.4,3704.5,3.2078]
[1736182086912,0.82256,3705.4,3704.6,40.8]
[1736182087113,0.5527,3705.4,3704.7,0.67478]
[1736182087315,0.5527,3705.4,3705.3,0.26987]
[1736182087513,0.82256,3705.4,3705.3,0.26987]
[1736182087709,0.5527,3705.6,3704.7,0.67478]
[1736182088106,0.5527,3705.6,3705.5,0.26985]
[1736182088516,0.5527,3705.6,3704.9,4.3878]
[1736182088517,3.2078,3705.9,3705.8,0.26983]
[1736182089319,0.81019,3706.4,3705.4,0.67465]
[1736182089618,0.2698,3706.2,3705.4,0.67465]
[1736182089821,0.2698,3706.3,3706.1,0.2698]
[1736182090012,0.81019,3706.4,3705.9,0.26982]
[1736182090311,0.81019,3706.4,3705.8,40.8]
[1736182090312,3.2078,3706.1,3705.8,40.8]
[1736182090512,3.2078,3706.1,3704.6,3.2078]
[1736182090712,0.26989,3705.0,3704.8,0.2699]
[1736182090916,3.2078,3705.5,3704.6,3.2078]